[Event "Live Chess"]
[Site "Chess.com"]
[Date "2023.05.21"]
[Round "-"]
[White "yeetpizza74"]
[Black "GiacoPietro"]
[Result "1-0"]
[WhiteElo "468"]
[BlackElo "640"]
[TimeControl "300"]
[EndTime "16:02:49 PDT"]
[Termination "yeetpizza74 won on time"]

1. e4 {[%clk 0:04:58.8]} 1... e5 {[%clk 0:04:54.6]} 2. Nf3 {[%clk 0:04:57.5]}
2... Nc6 {[%clk 0:04:53.6]} 3. Bc4 {[%clk 0:04:55.2]} 3... h6 {[%clk 0:04:44.7]}
4. c3 {[%clk 0:04:48.5]} 4... Nf6 {[%clk 0:04:40.1]} 5. d4 {[%clk 0:04:43.6]}
5... exd4 {[%clk 0:04:34.7]} 6. cxd4 {[%clk 0:04:41.1]} 6... Nxe4 {[%clk
0:04:34.1]} 7. O-O {[%clk 0:04:30.7]} 7... d5 {[%clk 0:04:18.8]} 8. Bb5 {[%clk
0:04:24.7]} 8... Nd6 {[%clk 0:04:09.8]} 9. Re1+ {[%clk 0:04:18.8]} 9... Be7
{[%clk 0:04:05.2]} 10. Bxc6+ {[%clk 0:04:12.5]} 10... bxc6 {[%clk 0:04:02.5]}
11. Bf4 {[%clk 0:03:55]} 11... O-O {[%clk 0:03:57.3]} 12. Bxd6 {[%clk
0:03:49.2]} 12... Bxd6 {[%clk 0:03:55.8]} 13. Nc3 {[%clk 0:03:44]} 13... Bg4
{[%clk 0:03:43.7]} 14. h3 {[%clk 0:03:32.9]} 14... Bh5 {[%clk 0:03:38.3]} 15.
Qd3 {[%clk 0:03:27.8]} 15... Rb8 {[%clk 0:03:02.8]} 16. Rab1 {[%clk 0:03:21.9]}
16... c5 {[%clk 0:02:58.1]} 17. dxc5 {[%clk 0:03:06.2]} 17... Bxc5 {[%clk
0:02:53.2]} 18. Nxd5 {[%clk 0:03:00.8]} 18... Bxf3 {[%clk 0:02:44]} 19. Qxf3
{[%clk 0:02:54]} 19... c6 {[%clk 0:02:14.3]} 20. Nf4 {[%clk 0:02:35.2]} 20...
Qd4 {[%clk 0:01:53]} 21. Nd3 {[%clk 0:02:22]} 21... Bb4 {[%clk 0:00:48.4]} 22.
Nxb4 {[%clk 0:02:02.3]} 22... Rxb4 {[%clk 0:00:43.3]} 23. Red1 {[%clk
0:01:48.9]} 23... Qb6 {[%clk 0:00:31.9]} 24. a3 {[%clk 0:01:39.6]} 24... Rxb2
{[%clk 0:00:29.4]} 25. Rxb2 {[%clk 0:01:29.1]} 25... Qxb2 {[%clk 0:00:27.6]} 26.
Re1 {[%clk 0:01:17]} 26... c5 {[%clk 0:00:18.3]} 27. Re2 {[%clk 0:01:12.7]}
27... Qb8 {[%clk 0:00:13]} 28. Rc2 {[%clk 0:01:11.2]} 28... Qc8 {[%clk
0:00:09.5]} 29. Qe3 {[%clk 0:01:06.2]} 29... Re8 {[%clk 0:00:08.1]} 30. Qxc5
{[%clk 0:01:02.6]} 30... Qxc5 {[%clk 0:00:05.8]} 31. Rxc5 {[%clk 0:01:01.3]}
31... Re1+ {[%clk 0:00:03.5]} 32. Kh2 {[%clk 0:00:59.8]} 32... Ra1 {[%clk
0:00:02.2]} 33. Ra5 {[%clk 0:00:57.6]} 1-0

[Event "Live Chess"]
[Site "Chess.com"]
[Date "2023.05.21"]
[Round "-"]
[White "CeladonFish"]
[Black "Shepherds_Pie"]
[Result "0-1"]
[WhiteElo "1127"]
[BlackElo "1919"]
[TimeControl "300"]
[EndTime "16:02:52 PDT"]
[Termination "Shepherds_Pie won by resignation"]

1. d4 {[%clk 0:04:58.9]} 1... d5 {[%clk 0:04:58.3]} 2. c4 {[%clk 0:04:58]} 2...
e6 {[%clk 0:04:57.1]} 3. Nc3 {[%clk 0:04:56.9]} 3... c5 {[%clk 0:04:55.9]} 4.
cxd5 {[%clk 0:04:54.6]} 4... cxd4 {[%clk 0:04:54.7]} 5. Qa4+ {[%clk 0:04:48.3]}
5... Bd7 {[%clk 0:04:53.1]} 6. Qxd4 {[%clk 0:04:47]} 6... exd5 {[%clk
0:04:52.1]} 7. Nxd5 {[%clk 0:04:45.2]} 7... Nc6 {[%clk 0:04:51.1]} 8. Qf4 {[%clk
0:04:27.7]} 8... Rc8 {[%clk 0:04:43.1]} 9. Qe3+ {[%clk 0:04:15.9]} 9... Nge7
{[%clk 0:04:38.1]} 10. Nxe7 {[%clk 0:04:13.6]} 10... Bxe7 {[%clk 0:04:37]} 11.
g3 {[%clk 0:04:08.3]} 11... O-O {[%clk 0:04:31]} 12. Bg2 {[%clk 0:04:07.1]}
12... Nb4 {[%clk 0:04:30]} 0-1

[Event "Live Chess"]
[Site "Chess.com"]
[Date "2023.05.21"]
[Round "-"]
[White "elvenstar"]
[Black "xx_blindpuffin_xx"]
[Result "0-1"]
[WhiteElo "1574"]
[BlackElo "2208"]
[TimeControl "300"]
[EndTime "16:02:54 PDT"]
[Termination "xx_blindpuffin_xx won by resignation"]

1. e4 {[%clk 0:04:58.8]} 1... c6 {[%clk 0:04:58.8]} 2. f4 {[%clk 0:04:56.6]}
2... d5 {[%clk 0:04:58.1]} 3. exd5 {[%clk 0:04:53.8]} 3... cxd5 {[%clk
0:04:56.5]} 4. d4 {[%clk 0:04:52.8]} 4... Bf5 {[%clk 0:04:52.9]} 5. Nf3 {[%clk
0:04:51.7]} 5... Nf6 {[%clk 0:04:51.5]} 6. c3 {[%clk 0:04:49.4]} 6... e6 {[%clk
0:04:50.5]} 7. Bd3 {[%clk 0:04:48.3]} 7... Bxd3 {[%clk 0:04:47.9]} 8. Qxd3
{[%clk 0:04:46.6]} 8... Nc6 {[%clk 0:04:47.8]} 9. O-O {[%clk 0:04:45.4]} 9...
Be7 {[%clk 0:04:37.3]} 10. Be3 {[%clk 0:04:43.8]} 10... O-O {[%clk 0:04:35.5]}
11. Ne5 {[%clk 0:04:42.1]} 11... Ne4 {[%clk 0:04:30.6]} 12. Nd2 {[%clk
0:04:40.4]} 12... f5 {[%clk 0:04:28.8]} 13. Ndf3 {[%clk 0:04:36.7]} 13... Qb6
{[%clk 0:04:23.2]} 14. b3 {[%clk 0:04:31]} 14... Bf6 {[%clk 0:04:20.5]} 15. Nd7
{[%clk 0:04:27.9]} 15... Qa5 {[%clk 0:04:18.2]} 16. Nxf8 {[%clk 0:04:23.6]}
16... Rxf8 {[%clk 0:04:18.1]} 17. c4 {[%clk 0:04:14]} 17... Qa3 {[%clk
0:03:59.8]} 18. cxd5 {[%clk 0:03:59.7]} 18... exd5 {[%clk 0:03:56.9]} 19. Ne5
{[%clk 0:03:43.9]} 19... Bxe5 {[%clk 0:03:46.1]} 20. dxe5 {[%clk 0:03:38.2]}
20... Rd8 {[%clk 0:03:42.7]} 21. Qb5 {[%clk 0:03:08.9]} 21... Qe7 {[%clk
0:03:30.7]} 22. Rad1 {[%clk 0:02:46.3]} 22... Nc3 {[%clk 0:03:29.1]} 23. Qd3
{[%clk 0:02:23.1]} 23... Nxd1 {[%clk 0:03:27.9]} 24. Rxd1 {[%clk 0:02:22.1]}
24... Kh8 {[%clk 0:03:19.5]} 25. a3 {[%clk 0:02:16.8]} 25... Qxa3 {[%clk
0:03:17.6]} 26. Qxf5 {[%clk 0:02:04.9]} 26... Qxb3 {[%clk 0:03:16]} 27. Qd3
{[%clk 0:01:53.1]} 27... Qxd3 {[%clk 0:03:14.9]} 28. Rxd3 {[%clk 0:01:51.6]}
28... h5 {[%clk 0:03:14.3]} 29. f5 {[%clk 0:01:49.7]} 29... Nxe5 {[%clk
0:03:12.7]} 30. Rb3 {[%clk 0:01:42]} 30... b6 {[%clk 0:03:10.6]} 31. Bd4 {[%clk
0:01:37.6]} 31... Nc6 {[%clk 0:03:06.2]} 32. Bb2 {[%clk 0:01:30.3]} 32... d4
{[%clk 0:03:04.6]} 33. Rh3 {[%clk 0:01:29]} 33... d3 {[%clk 0:03:00.7]} 0-1

[Event "Live Chess"]
[Site "Chess.com"]
[Date "2023.05.21"]
[Round "-"]
[White "Olisingapore"]
[Black "LiamClery2020"]
[Result "0-1"]
[WhiteElo "1844"]
[BlackElo "2068"]
[TimeControl "300"]
[EndTime "16:03:07 PDT"]
[Termination "LiamClery2020 won by resignation"]

1. d4 {[%clk 0:04:57.8]} 1... Nf6 {[%clk 0:04:59.9]} 2. c4 {[%clk 0:04:57.4]}
2... g6 {[%clk 0:04:58.4]} 3. g3 {[%clk 0:04:56.2]} 3... Bg7 {[%clk 0:04:56.8]}
4. Bg2 {[%clk 0:04:55.7]} 4... d6 {[%clk 0:04:55.2]} 5. Nf3 {[%clk 0:04:55.2]}
5... O-O {[%clk 0:04:54.7]} 6. O-O {[%clk 0:04:54.9]} 6... Nbd7 {[%clk
0:04:54.1]} 7. Nc3 {[%clk 0:04:54.3]} 7... e5 {[%clk 0:04:53.7]} 8. e4 {[%clk
0:04:54]} 8... exd4 {[%clk 0:04:51.3]} 9. Nxd4 {[%clk 0:04:53.9]} 9... Nc5
{[%clk 0:04:49.4]} 10. Re1 {[%clk 0:04:47.6]} 10... Re8 {[%clk 0:04:47.4]} 11.
h3 {[%clk 0:04:44.4]} 11... a6 {[%clk 0:04:33]} 12. Bg5 {[%clk 0:04:38]} 12...
h6 {[%clk 0:04:28.6]} 13. Bf4 {[%clk 0:04:25.8]} 13... Nh5 {[%clk 0:04:21]} 14.
Be3 {[%clk 0:04:21.9]} 14... Nf6 {[%clk 0:04:19.9]} 15. Qc2 {[%clk 0:04:18.8]}
15... Be6 {[%clk 0:04:10.9]} 16. b3 {[%clk 0:04:16.4]} 16... Qd7 {[%clk
0:04:09]} 17. Nd5 {[%clk 0:04:11.2]} 17... Nxd5 {[%clk 0:04:01.9]} 18. exd5
{[%clk 0:04:11.1]} 18... Bxh3 {[%clk 0:04:01]} 19. Rad1 {[%clk 0:03:38.3]} 19...
Bxg2 {[%clk 0:03:53.1]} 20. Kxg2 {[%clk 0:03:36.3]} 20... Re7 {[%clk 0:03:47]}
21. Qd2 {[%clk 0:03:28.9]} 21... Ne4 {[%clk 0:03:41.5]} 22. Qc2 {[%clk
0:03:15.6]} 22... Rae8 {[%clk 0:03:38.8]} 23. Rh1 {[%clk 0:03:07.4]} 23... h5
{[%clk 0:03:34.4]} 24. Rh4 {[%clk 0:02:42.8]} 24... Bf6 {[%clk 0:03:28.2]} 25.
Rf4 {[%clk 0:02:40.9]} 25... Bg5 {[%clk 0:03:24]} 26. Rxe4 {[%clk 0:02:33.3]}
26... Bxe3 {[%clk 0:03:20.7]} 27. Rxe3 {[%clk 0:02:28.5]} 27... Rxe3 {[%clk
0:03:18]} 28. fxe3 {[%clk 0:02:26.9]} 28... Rxe3 {[%clk 0:03:16.3]} 29. Qd2
{[%clk 0:02:22.8]} 29... Qe7 {[%clk 0:03:09.2]} 30. Nf3 {[%clk 0:02:14]} 30...
Re2+ {[%clk 0:03:08.3]} 31. Kf1 {[%clk 0:02:07.6]} 31... Rxd2 {[%clk 0:03:06.6]}
32. Rxd2 {[%clk 0:02:07.5]} 32... Qe4 {[%clk 0:03:04.1]} 33. Kf2 {[%clk
0:02:05.4]} 33... f6 {[%clk 0:02:58.7]} 34. Re2 {[%clk 0:02:04.1]} 34... Qf5
{[%clk 0:02:56.5]} 35. Re8+ {[%clk 0:02:02.5]} 35... Kf7 {[%clk 0:02:55.6]} 36.
Rb8 {[%clk 0:02:00.8]} 36... g5 {[%clk 0:02:54.4]} 37. Rxb7 {[%clk 0:01:59.2]}
37... g4 {[%clk 0:02:53.6]} 38. Rxc7+ {[%clk 0:01:58.1]} 38... Kg6 {[%clk
0:02:52.7]} 39. c5 {[%clk 0:01:53.1]} 39... Qxf3+ {[%clk 0:02:50.7]} 40. Kg1
{[%clk 0:01:51.6]} 40... dxc5 {[%clk 0:02:47.6]} 41. Rxc5 {[%clk 0:01:50.4]}
41... Qe3+ {[%clk 0:02:46.5]} 0-1

[Event "Live Chess"]
[Site "Chess.com"]
[Date "2023.05.21"]
[Round "-"]
[White "HoarseyHorsey"]
[Black "Cimon"]
[Result "0-1"]
[WhiteElo "1426"]
[BlackElo "1861"]
[TimeControl "300"]
[EndTime "16:03:13 PDT"]
[Termination "Cimon won by checkmate"]

1. d4 {[%clk 0:04:58.8]} 1... Nf6 {[%clk 0:04:58.6]} 2. c4 {[%clk 0:04:58]} 2...
g6 {[%clk 0:04:57.3]} 3. f3 {[%clk 0:04:57.3]} 3... Bg7 {[%clk 0:04:55.1]} 4. e4
{[%clk 0:04:56.6]} 4... d6 {[%clk 0:04:54]} 5. Nc3 {[%clk 0:04:54.8]} 5... O-O
{[%clk 0:04:49.7]} 6. Nge2 {[%clk 0:04:49.6]} 6... c5 {[%clk 0:04:44.1]} 7. d5
{[%clk 0:04:48.1]} 7... Na6 {[%clk 0:04:35.9]} 8. g4 {[%clk 0:04:35.2]} 8... Nc7
{[%clk 0:04:33.5]} 9. a4 {[%clk 0:04:30.8]} 9... a6 {[%clk 0:04:20.5]} 10. Bg5
{[%clk 0:04:09.7]} 10... h6 {[%clk 0:04:10.7]} 11. Be3 {[%clk 0:04:08.3]} 11...
e6 {[%clk 0:03:51.4]} 12. Qd2 {[%clk 0:04:01.4]} 12... exd5 {[%clk 0:03:49.7]}
13. cxd5 {[%clk 0:04:00.2]} 13... Rb8 {[%clk 0:03:44.4]} 14. Bxh6 {[%clk
0:03:58.2]} 14... b5 {[%clk 0:03:42.7]} 15. Bxg7 {[%clk 0:03:53.5]} 15... Kxg7
{[%clk 0:03:41.2]} 16. h4 {[%clk 0:03:50.7]} 16... b4 {[%clk 0:03:31.9]} 17. Nd1
{[%clk 0:03:44.8]} 17... Bxg4 {[%clk 0:02:33.1]} 18. fxg4 {[%clk 0:03:35.6]}
18... Nxe4 {[%clk 0:02:29.7]} 19. Qe3 {[%clk 0:03:26.4]} 19... Re8 {[%clk
0:02:23.2]} 20. h5 {[%clk 0:03:16.1]} 20... Nxd5 {[%clk 0:02:18.6]} 21. h6+
{[%clk 0:03:14.1]} 21... Kh7 {[%clk 0:02:16.2]} 22. Qf3 {[%clk 0:03:05.1]} 22...
Qe7 {[%clk 0:01:34.8]} 23. Rh2 {[%clk 0:02:52.1]} 23... Ng5 {[%clk 0:01:15.5]}
24. Qd3 {[%clk 0:02:33.8]} 24... Nf4 {[%clk 0:01:09.3]} 25. Qd2 {[%clk
0:02:26.4]} 25... Qe5 {[%clk 0:00:55.2]} 26. Rc1 {[%clk 0:02:13.4]} 26... Nf3+
{[%clk 0:00:51.2]} 27. Kf2 {[%clk 0:02:07.1]} 27... Nxd2 {[%clk 0:00:49.9]} 28.
Nxf4 {[%clk 0:02:00.6]} 28... Qxf4+ {[%clk 0:00:46.3]} 29. Kg1 {[%clk 0:02:00]}
29... Qxf1# {[%clk 0:00:43.9]} 0-1

[Event "Live Chess"]
[Site "Chess.com"]
[Date "2023.05.21"]
[Round "-"]
[White "blowerd"]
[Black "Missedidea"]
[Result "0-1"]
[WhiteElo "1384"]
[BlackElo "1812"]
[TimeControl "300"]
[EndTime "16:03:24 PDT"]
[Termination "Missedidea won on time"]

1. e4 {[%clk 0:04:58.4]} 1... c5 {[%clk 0:04:57.8]} 2. Nf3 {[%clk 0:04:55.7]}
2... d6 {[%clk 0:04:56.6]} 3. Bc4 {[%clk 0:04:53.9]} 3... e6 {[%clk 0:04:52.7]}
4. O-O {[%clk 0:04:51.6]} 4... a6 {[%clk 0:04:51.7]} 5. d4 {[%clk 0:04:49.7]}
5... b5 {[%clk 0:04:50.6]} 6. Be2 {[%clk 0:04:45.9]} 6... cxd4 {[%clk
0:04:49.3]} 7. Nxd4 {[%clk 0:04:43.9]} 7... Bb7 {[%clk 0:04:48.4]} 8. Bf3 {[%clk
0:04:37.4]} 8... Nf6 {[%clk 0:04:42.7]} 9. e5 {[%clk 0:04:27.6]} 9... Nd5 {[%clk
0:04:40.6]} 10. exd6 {[%clk 0:04:24.5]} 10... Bxd6 {[%clk 0:04:37.7]} 11. Nb3
{[%clk 0:04:17.9]} 11... Qc7 {[%clk 0:04:23.2]} 12. Re1 {[%clk 0:04:15.5]} 12...
O-O {[%clk 0:04:17.4]} 13. g3 {[%clk 0:03:50.1]} 13... Nd7 {[%clk 0:04:13.5]}
14. Nd4 {[%clk 0:03:28.4]} 14... Ne5 {[%clk 0:04:00.1]} 15. Bxd5 {[%clk
0:02:50]} 15... Bxd5 {[%clk 0:03:52.9]} 16. Nc3 {[%clk 0:02:49]} 16... Bb7
{[%clk 0:03:37.4]} 17. Bf4 {[%clk 0:02:39.4]} 17... Rfd8 {[%clk 0:03:27.6]} 18.
Qe2 {[%clk 0:02:21.4]} 18... Ng6 {[%clk 0:03:17]} 19. Bxd6 {[%clk 0:02:18.8]}
19... Rxd6 {[%clk 0:03:14.6]} 20. Rad1 {[%clk 0:02:08.2]} 20... Rad8 {[%clk
0:03:11.2]} 21. Qe3 {[%clk 0:01:36.4]} 21... e5 {[%clk 0:02:56.4]} 22. Ndxb5
{[%clk 0:01:12.5]} 22... axb5 {[%clk 0:02:47.5]} 23. Nxb5 {[%clk 0:01:02.8]}
23... Qc6 {[%clk 0:02:46.1]} 24. f3 {[%clk 0:00:44.9]} 24... Qxb5 {[%clk
0:02:39.5]} 25. Rxd6 {[%clk 0:00:33.1]} 25... Rxd6 {[%clk 0:02:37]} 26. Qa3
{[%clk 0:00:31.8]} 26... Qb6+ {[%clk 0:02:14]} 27. Kh1 {[%clk 0:00:28.1]} 27...
h5 {[%clk 0:02:10.3]} 28. Rg1 {[%clk 0:00:15.8]} 28... e4 {[%clk 0:02:01]} 29.
Qc3 {[%clk 0:00:10.6]} 29... exf3 {[%clk 0:01:57.1]} 30. Re1 {[%clk 0:00:05.6]}
30... f2+ {[%clk 0:01:55.3]} 31. Re4 {[%clk 0:00:00.1]} 31... Bxe4+ {[%clk
0:01:52.8]} 0-1

[Event "Live Chess"]
[Site "Chess.com"]
[Date "2023.05.21"]
[Round "-"]
[White "martynstanley"]
[Black "jimwad"]
[Result "0-1"]
[WhiteElo "1002"]
[BlackElo "1226"]
[TimeControl "300"]
[EndTime "16:03:38 PDT"]
[Termination "jimwad won by checkmate"]

1. d4 {[%clk 0:04:59]} 1... d5 {[%clk 0:04:58.6]} 2. e3 {[%clk 0:04:58.4]} 2...
Nc6 {[%clk 0:04:55.8]} 3. Bd3 {[%clk 0:04:57.5]} 3... g6 {[%clk 0:04:53.1]} 4.
c3 {[%clk 0:04:56.8]} 4... Bg7 {[%clk 0:04:52.1]} 5. f4 {[%clk 0:04:56.1]} 5...
f5 {[%clk 0:04:49.2]} 6. Nf3 {[%clk 0:04:55.2]} 6... Nf6 {[%clk 0:04:47.9]} 7.
O-O {[%clk 0:04:54.8]} 7... Bd7 {[%clk 0:04:45.3]} 8. Ne5 {[%clk 0:04:54]} 8...
Nxe5 {[%clk 0:04:43.9]} 9. fxe5 {[%clk 0:04:53.3]} 9... Ne4 {[%clk 0:04:42.3]}
10. Nd2 {[%clk 0:04:52]} 10... e6 {[%clk 0:04:37.5]} 11. Rf3 {[%clk 0:04:50]}
11... Qg5 {[%clk 0:04:33.9]} 12. Rh3 {[%clk 0:04:46.7]} 12... O-O-O {[%clk
0:04:30.2]} 13. Qf3 {[%clk 0:04:45.3]} 13... Qe7 {[%clk 0:04:14.2]} 14. Qf4
{[%clk 0:04:41.9]} 14... Ng5 {[%clk 0:04:10.4]} 15. Nf3 {[%clk 0:04:38.4]} 15...
Nxh3+ {[%clk 0:04:08.7]} 16. gxh3 {[%clk 0:04:36.5]} 16... h6 {[%clk 0:04:05.5]}
17. Kf1 {[%clk 0:04:33.4]} 17... g5 {[%clk 0:04:04.4]} 18. Qg3 {[%clk
0:04:32.1]} 18... Rdg8 {[%clk 0:04:00.4]} 19. Ke2 {[%clk 0:04:29.1]} 19... f4
{[%clk 0:03:59.3]} 20. exf4 {[%clk 0:04:27.9]} 20... gxf4 {[%clk 0:03:56.9]} 21.
Qxf4 {[%clk 0:04:26.7]} 21... Rf8 {[%clk 0:03:52.4]} 22. Qg4 {[%clk 0:04:25.4]}
22... Rhg8 {[%clk 0:03:42.9]} 23. Qg1 {[%clk 0:04:23]} 23... Bxe5 {[%clk
0:03:40.8]} 24. Qf2 {[%clk 0:04:21.2]} 24... Bf4 {[%clk 0:03:35.6]} 25. Bxf4
{[%clk 0:04:19.9]} 25... Rxf4 {[%clk 0:03:34.1]} 26. Rg1 {[%clk 0:04:17.4]}
26... Rgf8 {[%clk 0:03:32]} 27. Rg3 {[%clk 0:04:15.7]} 27... e5 {[%clk
0:03:24.5]} 28. dxe5 {[%clk 0:04:13.3]} 28... Rxf3 {[%clk 0:03:16.4]} 29. Rxf3
{[%clk 0:04:12]} 29... Qxe5+ {[%clk 0:03:15.1]} 30. Kd2 {[%clk 0:04:10.8]} 30...
Rxf3 {[%clk 0:03:11.6]} 31. Qxf3 {[%clk 0:04:09.8]} 31... Qg5+ {[%clk
0:03:06.9]} 32. Kc2 {[%clk 0:04:07.5]} 32... Ba4+ {[%clk 0:03:05.3]} 33. b3
{[%clk 0:04:06.5]} 33... Bd7 {[%clk 0:03:03.9]} 34. Qf8+ {[%clk 0:04:04.7]}
34... Qd8 {[%clk 0:03:02.4]} 35. Qxd8+ {[%clk 0:04:03.4]} 35... Kxd8 {[%clk
0:03:00.8]} 36. c4 {[%clk 0:04:01.5]} 36... dxc4 {[%clk 0:02:58.7]} 37. Bxc4
{[%clk 0:04:00.8]} 37... Bxh3 {[%clk 0:02:57.8]} 38. Kd3 {[%clk 0:03:59.3]}
38... Bf5+ {[%clk 0:02:56.3]} 39. Ke3 {[%clk 0:03:58]} 39... Bb1 {[%clk
0:02:55]} 40. a4 {[%clk 0:03:56.4]} 40... a5 {[%clk 0:02:53]} 41. Kf4 {[%clk
0:03:54.2]} 41... b6 {[%clk 0:02:51.8]} 42. Kg4 {[%clk 0:03:53.1]} 42... Bg6
{[%clk 0:02:48.6]} 43. h4 {[%clk 0:03:51.1]} 43... h5+ {[%clk 0:02:47.3]} 44.
Kg5 {[%clk 0:03:49.9]} 44... Be8 {[%clk 0:02:46.3]} 45. Bd3 {[%clk 0:03:46.2]}
45... Ke7 {[%clk 0:02:43.6]} 46. Bg6 {[%clk 0:03:45.2]} 46... c6 {[%clk
0:02:40.4]} 47. Bxe8 {[%clk 0:03:43.8]} 47... Kxe8 {[%clk 0:02:38.2]} 48. Kxh5
{[%clk 0:03:43.5]} 48... Kf7 {[%clk 0:02:37.2]} 49. Kh6 {[%clk 0:03:42.3]} 49...
Kg8 {[%clk 0:02:36.4]} 50. Kg6 {[%clk 0:03:40.3]} 50... b5 {[%clk 0:02:34.5]}
51. h5 {[%clk 0:03:39.6]} 51... bxa4 {[%clk 0:02:32.4]} 52. bxa4 {[%clk
0:03:38.7]} 52... c5 {[%clk 0:02:31.6]} 53. h6 {[%clk 0:03:38.3]} 53... c4
{[%clk 0:02:30.4]} 54. h7+ {[%clk 0:03:37.1]} 54... Kh8 {[%clk 0:02:29.6]} 55.
Kf5 {[%clk 0:03:34.4]} 55... c3 {[%clk 0:02:28.6]} 56. Ke4 {[%clk 0:03:34.1]}
56... c2 {[%clk 0:02:27.7]} 57. Kd3 {[%clk 0:03:33.8]} 57... c1=Q {[%clk
0:02:26.1]} 58. Kd4 {[%clk 0:03:32.1]} 58... Qa3 {[%clk 0:02:23.6]} 59. Kd5
{[%clk 0:03:30.8]} 59... Qxa4 {[%clk 0:02:22.6]} 60. Kc5 {[%clk 0:03:29.3]}
60... Qb4+ {[%clk 0:02:21.5]} 61. Kc6 {[%clk 0:03:28.3]} 61... a4 {[%clk
0:02:18.1]} 62. Kd5 {[%clk 0:03:26.3]} 62... Kxh7 {[%clk 0:02:13.6]} 63. Kc6
{[%clk 0:03:26.1]} 63... a3 {[%clk 0:02:11.7]} 64. Kd5 {[%clk 0:03:23.4]} 64...
Kg6 {[%clk 0:02:09.1]} 65. Ke6 {[%clk 0:03:22.5]} 65... Qf4 {[%clk 0:02:07.1]}
66. Kd5 {[%clk 0:03:20.5]} 66... Kf6 {[%clk 0:02:05.5]} 67. Kc6 {[%clk
0:03:19.3]} 67... Ke6 {[%clk 0:02:04.3]} 68. Kb7 {[%clk 0:03:17]} 68... Qc4
{[%clk 0:02:01.6]} 69. Kb6 {[%clk 0:03:15.6]} 69... Kd6 {[%clk 0:01:57.1]} 70.
Ka7 {[%clk 0:03:13.8]} 70... Qb5 {[%clk 0:01:55.5]} 71. Ka8 {[%clk 0:03:11.6]}
71... Kc7 {[%clk 0:01:50.9]} 72. Ka7 {[%clk 0:03:08.4]} 72... Qa5# {[%clk
0:01:49.6]} 0-1

[Event "Live Chess"]
[Site "Chess.com"]
[Date "2023.05.21"]
[Round "-"]
[White "GMHarry-youtube"]
[Black "MarkLim1"]
[Result "1-0"]
[WhiteElo "2008"]
[BlackElo "1663"]
[TimeControl "300"]
[EndTime "16:03:46 PDT"]
[Termination "GMHarry-youtube won by checkmate"]

1. e4 {[%clk 0:04:59.3]} 1... e6 {[%clk 0:04:59.1]} 2. d4 {[%clk 0:04:57.9]}
2... d5 {[%clk 0:04:58.3]} 3. e5 {[%clk 0:04:57.4]} 3... c5 {[%clk 0:04:57.4]}
4. c3 {[%clk 0:04:56.8]} 4... Nc6 {[%clk 0:04:56.7]} 5. Nf3 {[%clk 0:04:55.7]}
5... Nge7 {[%clk 0:04:56]} 6. Bd3 {[%clk 0:04:53]} 6... cxd4 {[%clk 0:04:54.9]}
7. O-O {[%clk 0:04:51.3]} 7... dxc3 {[%clk 0:04:52.4]} 8. Nxc3 {[%clk 0:04:48]}
8... Ng6 {[%clk 0:04:50.2]} 9. Re1 {[%clk 0:04:46.2]} 9... Bb4 {[%clk
0:04:46.8]} 10. Bxg6 {[%clk 0:04:37.8]} 10... hxg6 {[%clk 0:04:45.3]} 11. Qb3
{[%clk 0:04:27.6]} 11... Bd7 {[%clk 0:04:40.6]} 12. Bg5 {[%clk 0:04:03]} 12...
Qc7 {[%clk 0:04:32.8]} 13. Rac1 {[%clk 0:03:57.4]} 13... Qb6 {[%clk 0:04:27.2]}
14. Red1 {[%clk 0:03:54.9]} 14... Rc8 {[%clk 0:04:15.1]} 15. Na4 {[%clk
0:03:50.7]} 15... Qa5 {[%clk 0:04:07.9]} 16. a3 {[%clk 0:03:47.6]} 16... Be7
{[%clk 0:04:05.6]} 17. Bxe7 {[%clk 0:03:43.7]} 17... Kxe7 {[%clk 0:04:02.2]} 18.
Nc5 {[%clk 0:03:42.7]} 18... b6 {[%clk 0:03:52.7]} 19. Nb7 {[%clk 0:03:39.3]}
19... Qa6 {[%clk 0:03:44.5]} 20. Nd6 {[%clk 0:03:36.3]} 20... Nxe5 {[%clk
0:03:34.2]} 21. Nxc8+ {[%clk 0:03:32.6]} 21... Rxc8 {[%clk 0:03:14.7]} 22. Nxe5
{[%clk 0:03:27.4]} 22... Ba4 {[%clk 0:03:09.8]} 23. Qb4+ {[%clk 0:03:23]} 23...
Rc5 {[%clk 0:02:58.2]} 24. Rxc5 {[%clk 0:03:19.6]} 24... bxc5 {[%clk 0:02:56.7]}
25. Qxc5+ {[%clk 0:03:18.3]} 25... Kf6 {[%clk 0:02:55.4]} 26. Nd7+ {[%clk
0:03:16.7]} 26... Bxd7 {[%clk 0:02:53.2]} 27. Rd4 {[%clk 0:03:10.6]} 27... g5
{[%clk 0:02:49.6]} 28. Qc3 {[%clk 0:02:59.3]} 28... e5 {[%clk 0:02:46.8]} 29.
Rxd5 {[%clk 0:02:57.6]} 29... Be6 {[%clk 0:02:44.3]} 30. Rxe5 {[%clk 0:02:54.5]}
30... Kg6 {[%clk 0:02:38.7]} 31. Qc2+ {[%clk 0:02:51.8]} 31... Kh6 {[%clk
0:02:37.5]} 32. Qe2 {[%clk 0:02:47.4]} 32... Qd6 {[%clk 0:02:30.2]} 33. h4
{[%clk 0:02:42.8]} 33... gxh4 {[%clk 0:02:26.4]} 34. Qh5# {[%clk 0:02:41.1]} 1-0